[Event "44th Chess Olympiad Open 2022"]
[Site "Chennai"]
[Date "2022.08.08"]
[Round "10.46"]
[White "Madol Garang Panthoum"]
[Black "Camacho Campusano, David Daniel"]
[Result "0-1"]
[WhiteElo "1985"]
[BlackElo "2221"]
[Annotator "NA RC"]
[PlyCount "74"]
[EventDate "2022.??.??"]
[TimeControl "60"]

1. Nc3 {[%emt 0:00:40]} e5 {[%emt 0:00:41]} 2. e4 {[%emt 0:00:07]} Nf6 {
[%emt 0:00:36]} 3. Nf3 {[%emt 0:00:29]} Nc6 {[%emt 0:00:24]} 4. Bb5 {[%emt 0:
00:00]} Bc5 {[%emt 0:01:13]} 5. O-O {[%emt 0:00:32]} d6 {[%emt 0:00:48]} 6. d4
{[%emt 0:02:12]} exd4 {[%emt 0:00:09]} 7. Nxd4 {[%emt 0:00:34]} Bd7 {[%emt 0:
00:00]} 8. Nb3 {[%emt 0:12:03]} Bb6 {[%emt 0:00:22]} 9. Bg5 {[%emt 0:01:15]} h6
{[%emt 0:00:15]} 10. Bh4 {[%emt 0:02:56]} g5 {[%emt 0:03:50]} 11. Bg3 {[%emt 0:
00:00]} h5 {[%emt 0:00:36]} 12. e5 {[%emt 0:09:28]} h4 {[%emt 0:04:50]} 13.
exf6 {[%emt 0:11:39]} hxg3 {[%emt 0:00:32]} 14. Ne4 {[%emt 0:05:09]} gxf2+ {
[%emt 0:03:51]} 15. Kh1 {[%emt 0:00:44]} Ne5 {[%emt 0:02:27]} 16. Qe2 {[%emt 0:
00:00]} a6 {[%emt 0:07:02]} 17. Bxd7+ {[%emt 0:07:31]} Qxd7 {[%emt 0:00:23]}
18. c4 {[%emt 0:00:22]} Qf5 {[%emt 0:01:51]} 19. Nxf2 {[%emt 0:01:33]} O-O-O {
[%emt 0:04:06]} 20. c5 {[%emt 0:02:41]} dxc5 {[%emt 0:04:20]} 21. Nh3 {[%emt 0:
00:00]} Qe6 {[%emt 0:04:44]} 22. Rae1 {[%emt 0:01:01]} Rde8 {[%emt 0:08:00]}
23. Nd2 {[%emt 0:02:39]} g4 {[%emt 0:08:10]} 24. Ng5 {[%emt 0:04:26]} Qd6 {
[%emt 0:14:48]} 25. g3 {[%emt 0:00:14]} c4 {[%emt 0:02:04]} 26. Qg2 {[%emt 0:
00:00]} Qd4 {[%emt 0:09:18]} 27. Re4 {[%emt 0:03:49]} Qxb2 {[%emt 0:01:38]} 28.
Rfe1 {[%emt 0:00:28]} Rd8 {[%emt 0:06:41]} 29. Rxe5 {[%emt 0:00:28]} Qxd2 {
[%emt 0:01:29]} 30. Qxd2 {[%emt 0:00:28]} Rxd2 {[%emt 0:00:07]} 31. Re8+ {
[%emt 0:00:44]} Rxe8 {[%emt 0:00:05]} 32. Rxe8+ {[%emt 0:00:03]} Kd7 {[%emt 0:
00:00]} 33. Re7+ {[%emt 0:01:21]} Kc6 {[%emt 0:00:17]} 34. Re1 {[%emt 0:00:06]}
c3 {[%emt 0:02:21]} 35. Ne4 {[%emt 0:01:06]} Rd3 {[%emt 0:01:20]} 36. Rc1 {
[%emt 0:00:44]} Bd4 {[%emt 0:00:12]} 37. h4 {[%emt 0:00:06]} Kd5 {[%emt 0:00:
00]} 0-1

[Event "44th Chess Olympiad Open 2022"]
[Site "Chennai"]
[Date "2022.08.08"]
[Round "10.47"]
[White "Adebayo, Adegboyega"]
[Black "Tsige, Addisalem Temesgen"]
[Result "1-0"]
[WhiteElo "2313"]
[BlackElo "2072"]
[Annotator "RC"]
[PlyCount "87"]
[EventDate "2022.??.??"]
[TimeControl "60"]

1. d4 {[%emt 0:00:30]} Nf6 {[%emt 0:01:23]} 2. Bg5 {[%emt 0:00:11]} d5 {
[%emt 0:01:10]} 3. e3 {[%emt 0:00:24]} c5 {[%emt 0:00:53]} 4. c3 {[%emt 0:00:
00]} Qb6 {[%emt 0:01:32]} 5. Qb3 {[%emt 0:01:26]} c4 {[%emt 0:00:24]} 6. Qc2 {
[%emt 0:00:14]} Nc6 {[%emt 0:00:19]} 7. Nd2 {[%emt 0:01:20]} g6 {[%emt 0:00:52]
} 8. Bxf6 {[%emt 0:00:09]} exf6 {[%emt 0:00:55]} 9. e4 {[%emt 0:01:55]} dxe4 {
[%emt 0:14:16]} 10. Nxc4 {[%emt 0:00:41]} Qd8 {[%emt 0:02:30]} 11. Qxe4+ {
[%emt 0:00:32]} Be7 {[%emt 0:00:17]} 12. Bd3 {[%emt 0:00:43]} O-O {[%emt 0:00:
00]} 13. Ne2 {[%emt 0:00:07]} Be6 {[%emt 0:03:18]} 14. Ne3 {[%emt 0:00:57]} f5
{[%emt 0:05:23]} 15. Qf3 {[%emt 0:00:57]} Ne5 {[%emt 0:02:40]} 16. dxe5 {
[%emt 0:00:37]} Qxd3 {[%emt 0:00:08]} 17. Nd4 {[%emt 0:07:49]} Bxa2 {[%emt 0:
00:00]} 18. Nexf5 {[%emt 0:00:25]} Qxf3 {[%emt 0:03:01]} 19. Nxe7+ {[%emt 0:00:
00]} Kg7 {[%emt 0:00:19]} 20. gxf3 {[%emt 0:00:58]} Be6 {[%emt 0:03:56]} 21. f4
{[%emt 0:00:45]} Bc4 {[%emt 0:02:47]} 22. b3 {[%emt 0:00:39]} Rfe8 {[%emt 0:00:
00]} 23. f5 {[%emt 0:03:33]} f6 {[%emt 0:01:18]} 24. bxc4 {[%emt 0:00:59]} Rxe7
{[%emt 0:00:40]} 25. e6 {[%emt 0:00:14]} Rc7 {[%emt 0:01:04]} 26. Ra4 {[%emt 0:
00:00]} a6 {[%emt 0:01:04]} 27. Kd2 {[%emt 0:00:34]} Rac8 {[%emt 0:01:08]} 28.
Rb1 {[%emt 0:00:20]} Kf8 {[%emt 0:01:16]} 29. Rb6 {[%emt 0:00:24]} Re8 {
[%emt 0:04:41]} 30. f4 {[%emt 0:00:24]} Kg7 {[%emt 0:04:10]} 31. Kd3 {[%emt 0:
00:00]} g5 {[%emt 0:01:56]} 32. Rab4 {[%emt 0:01:13]} Ree7 {[%emt 0:00:32]} 33.
Rb2 {[%emt 0:00:10]} Kh6 {[%emt 0:02:55]} 34. fxg5+ {[%emt 0:00:27]} Kxg5 {
[%emt 0:00:46]} 35. Rg2+ {[%emt 0:00:32]} Kh5 {[%emt 0:02:19]} 36. Rb1 {
[%emt 0:00:25]} Rg7 {[%emt 0:01:21]} 37. Rxg7 {[%emt 0:00:21]} Rxg7 {[%emt 0:
00:00]} 38. Re1 {[%emt 0:00:04]} Re7 {[%emt 0:00:12]} 39. c5 {[%emt 0:00:10]}
Kg4 {[%emt 0:01:00]} 40. Ke4 {[%emt 0:00:11]} Rc7 {[%emt 0:01:12]} 41. Rg1+ {
[%emt 0:30:13]} Kh4 {[%emt 0:31:56]} 42. Kd5 {[%emt 0:00:13]} a5 {[%emt 0:00:
00]} 43. Kd6 {[%emt 0:00:05]} Rc8 {[%emt 0:00:29]} 44. e7 {[%emt 0:00:06]} 1-0

[Event "44th Chess Olympiad Open 2022"]
[Site "Chennai"]
[Date "2022.08.08"]
[Round "10.47"]
[White "Okeke Issac"]
[Black "Jimma, Desalegn Fekadu"]
[Result "1-0"]
[WhiteElo "2204"]
[BlackElo "2112"]
[Annotator "NA RC"]
[PlyCount "113"]
[EventDate "2022.??.??"]
[TimeControl "60"]

1. e4 {[%emt 0:00:04]} c5 {[%emt 0:00:10]} 2. Nf3 {[%emt 0:00:04]} d6 {[%emt 0:
00:00]} 3. d4 {[%emt 0:00:03]} cxd4 {[%emt 0:00:07]} 4. Nxd4 {[%emt 0:00:04]}
Nf6 {[%emt 0:00:06]} 5. Nc3 {[%emt 0:00:04]} a6 {[%emt 0:00:07]} 6. Be3 {
[%emt 0:00:26]} e5 {[%emt 0:02:03]} 7. Nb3 {[%emt 0:00:48]} Be6 {[%emt 0:00:09]
} 8. Be2 {[%emt 0:00:38]} Be7 {[%emt 0:02:17]} 9. g4 {[%emt 0:00:23]} h6 {
[%emt 0:01:53]} 10. h4 {[%emt 0:00:43]} d5 {[%emt 0:16:40]} 11. exd5 {[%emt 0:
00:00]} Nxd5 {[%emt 0:00:10]} 12. Nxd5 {[%emt 0:00:04]} Bxd5 {[%emt 0:00:48]}
13. Bf3 {[%emt 0:00:13]} Bxf3 {[%emt 0:04:10]} 14. Qxf3 {[%emt 0:00:03]} Nc6 {
[%emt 0:00:07]} 15. Rd1 {[%emt 0:05:16]} Qc7 {[%emt 0:00:37]} 16. Qe4 {[%emt 0:
00:00]} Rd8 {[%emt 0:05:28]} 17. Rxd8+ {[%emt 0:02:21]} Nxd8 {[%emt 0:01:50]}
18. Kd1 {[%emt 0:00:52]} Qc6 {[%emt 0:01:52]} 19. Nd2 {[%emt 0:01:17]} Qxe4 {
[%emt 0:06:45]} 20. Nxe4 {[%emt 0:00:43]} Ne6 {[%emt 0:00:16]} 21. Ke2 {
[%emt 0:01:25]} O-O {[%emt 0:02:25]} 22. c3 {[%emt 0:02:58]} Rd8 {[%emt 0:00:
00]} 23. h5 {[%emt 0:03:05]} f6 {[%emt 0:02:28]} 24. Rf1 {[%emt 0:01:09]} Kf7 {
[%emt 0:03:38]} 25. f4 {[%emt 0:06:30]} exf4 {[%emt 0:00:04]} 26. Bxf4 {
[%emt 0:00:10]} Rd5 {[%emt 0:01:44]} 27. Be3 {[%emt 0:02:16]} Bc5 {[%emt 0:00:
00]} 28. Rf5 {[%emt 0:07:17]} Bxe3 {[%emt 0:05:21]} 29. Rxd5 {[%emt 0:00:21]}
Nf4+ {[%emt 0:00:10]} 30. Kxe3 {[%emt 0:00:05]} Nxd5+ {[%emt 0:00:23]} 31. Kd4
{[%emt 0:00:10]} Ne7 {[%emt 0:03:08]} 32. Nd6+ {[%emt 0:00:51]} Kf8 {[%emt 0:
00:00]} 33. Nxb7 {[%emt 0:00:23]} Nc6+ {[%emt 0:00:08]} 34. Ke4 {[%emt 0:00:39]
} Ne5 {[%emt 0:00:26]} 35. Kf5 {[%emt 0:00:20]} Nc4 {[%emt 0:00:19]} 36. b4 {
[%emt 0:05:42]} Ne3+ {[%emt 0:00:25]} 37. Ke6 {[%emt 0:00:14]} Nxg4 {[%emt 0:
00:00]} 38. c4 {[%emt 0:01:05]} f5 {[%emt 0:01:04]} 39. c5 {[%emt 0:00:39]} Nf6
{[%emt 0:07:28]} 40. c6 {[%emt 0:00:54]} Ne8 {[%emt 0:01:45]} 41. Nd6 {[%emt 0:
00:00]} Nc7+ {[%emt 0:31:56]} 42. Kd7 {[%emt 0:00:03]} Nd5 {[%emt 0:04:08]} 43.
Nxf5 {[%emt 0:00:54]} Kf7 {[%emt 0:01:55]} 44. Nd6+ {[%emt 0:01:20]} Kf6 {
[%emt 0:01:22]} 45. Ne8+ {[%emt 0:02:01]} Kf7 {[%emt 0:00:16]} 46. c7 {[%emt 0:
00:00]} g5 {[%emt 0:01:48]} 47. Kd6 {[%emt 0:12:49]} Ne7 {[%emt 0:01:06]} 48.
Kd7 {[%emt 0:00:29]} Nd5 {[%emt 0:03:53]} 49. Nd6+ {[%emt 0:00:58]} Kf6 {
[%emt 0:00:08]} 50. Nc4 {[%emt 0:04:23]} Nxc7 {[%emt 0:01:19]} 51. Kxc7 {
[%emt 0:00:02]} g4 {[%emt 0:00:41]} 52. Ne3 {[%emt 0:00:16]} g3 {[%emt 0:00:38]
} 53. Kd6 {[%emt 0:00:36]} Kg5 {[%emt 0:00:00]} 54. Ke5 {[%emt 0:00:00]} Kxh5 {
[%emt 0:00:00]} 55. Kf4 {[%emt 0:00:00]} Kg6 {[%emt 0:00:00]} 56. Kxg3 {
[%emt 0:00:00]} Kf6 {[%emt 0:00:00]} 57. Nd5+ {[%emt 0:00:00]} 1-0

[Event "44th Chess Olympiad Open 2022"]
[Site "Chennai"]
[Date "2022.08.08"]
[Round "10.47"]
[White "Abera, Aydagnuhem Gezachew"]
[Black "Kigigha, Bomo"]
[Result "0-1"]
[WhiteElo "2137"]
[BlackElo "2251"]
[Annotator "NA RC"]
[PlyCount "76"]
[EventDate "2022.??.??"]
[TimeControl "60"]

1. e4 {[%emt 0:00:11]} c5 {[%emt 0:00:09]} 2. Nf3 {[%emt 0:00:09]} Nc6 {
[%emt 0:00:07]} 3. d4 {[%emt 0:00:08]} cxd4 {[%emt 0:00:01]} 4. Nxd4 {[%emt 0:
00:00]} Qb6 {[%emt 0:00:05]} 5. Nb3 {[%emt 0:00:15]} Nf6 {[%emt 0:00:05]} 6.
Nc3 {[%emt 0:00:21]} e6 {[%emt 0:00:05]} 7. Bd3 {[%emt 0:01:01]} a6 {[%emt 0:
00:00]} 8. O-O {[%emt 0:00:21]} Be7 {[%emt 0:00:06]} 9. Be3 {[%emt 0:00:36]}
Qc7 {[%emt 0:00:13]} 10. f4 {[%emt 0:00:28]} d6 {[%emt 0:00:06]} 11. a3 {
[%emt 0:02:10]} b5 {[%emt 0:00:24]} 12. Qe2 {[%emt 0:03:16]} Bb7 {[%emt 0:00:
00]} 13. h3 {[%emt 0:04:20]} O-O {[%emt 0:00:14]} 14. g4 {[%emt 0:00:25]} b4 {
[%emt 0:00:16]} 15. axb4 {[%emt 0:02:04]} Nxb4 {[%emt 0:00:07]} 16. g5 {
[%emt 0:02:05]} Nd7 {[%emt 0:00:13]} 17. Qg4 {[%emt 0:02:46]} Nc5 {[%emt 0:00:
00]} 18. Nxc5 {[%emt 0:08:03]} dxc5 {[%emt 0:00:08]} 19. e5 {[%emt 0:02:57]} c4
{[%emt 0:06:36]} 20. Be4 {[%emt 0:27:56]} Bxe4 {[%emt 0:04:21]} 21. Nxe4 {
[%emt 0:00:27]} Nxc2 {[%emt 0:00:45]} 22. Bf2 {[%emt 0:05:48]} Nxa1 {[%emt 0:
00:00]} 23. Rxa1 {[%emt 0:00:44]} Qb7 {[%emt 0:01:19]} 24. Re1 {[%emt 0:02:01]}
Qxb2 {[%emt 0:01:19]} 25. Re3 {[%emt 0:01:23]} Rad8 {[%emt 0:02:40]} 26. f5 {
[%emt 0:06:31]} exf5 {[%emt 0:12:22]} 27. Qxf5 {[%emt 0:00:33]} Qb1+ {[%emt 0:
00:00]} 28. Kg2 {[%emt 0:07:08]} Kh8 {[%emt 0:00:12]} 29. Qg4 {[%emt 0:01:08]}
Rd3 {[%emt 0:01:58]} 30. Re1 {[%emt 0:05:00]} Qb7 {[%emt 0:00:19]} 31. Kh2 {
[%emt 0:00:46]} Qd7 {[%emt 0:00:19]} 32. Qh5 {[%emt 0:01:16]} Qf5 {[%emt 0:00:
00]} 33. Bg3 {[%emt 0:02:31]} c3 {[%emt 0:01:32]} 34. Qe2 {[%emt 0:02:37]} Qf3
{[%emt 0:00:33]} 35. Qa2 {[%emt 0:02:55]} Bxg5 {[%emt 0:01:27]} 36. Qa3 {
[%emt 0:03:20]} Rfd8 {[%emt 0:00:47]} 37. Qc5 {[%emt 0:01:20]} Be3 {[%emt 0:00:
00]} 38. Qe7 {[%emt 0:01:15]} Rd2+ {[%emt 0:00:59]} 0-1

[Event "44th Chess Olympiad Open 2022"]
[Site "Chennai"]
[Date "2022.08.08"]
[Round "10.47"]
[White "Badene, Habtamu Bayu"]
[Black "Akinseye, Abiola"]
[Result "0-1"]
[WhiteElo "2011"]
[BlackElo "2214"]
[Annotator "NA RC"]
[PlyCount "80"]
[EventDate "2022.??.??"]
[TimeControl "60"]

1. e4 {[%emt 0:00:02]} e5 {[%emt 0:00:18]} 2. Nf3 {[%emt 0:00:01]} Nc6 {
[%emt 0:00:09]} 3. Bb5 {[%emt 0:00:01]} a6 {[%emt 0:00:16]} 4. Ba4 {[%emt 0:00:
00]} Nf6 {[%emt 0:00:09]} 5. Bxc6 {[%emt 0:00:38]} dxc6 {[%emt 0:00:24]} 6. d3
{[%emt 0:00:18]} Bc5 {[%emt 0:03:48]} 7. h3 {[%emt 0:02:11]} O-O {[%emt 0:00:
00]} 8. O-O {[%emt 0:00:36]} Qe7 {[%emt 0:02:02]} 9. Bg5 {[%emt 0:00:40]} Qe6 {
[%emt 0:02:17]} 10. Nbd2 {[%emt 0:01:13]} Ba7 {[%emt 0:04:43]} 11. Nc4 {
[%emt 0:06:05]} Nxe4 {[%emt 0:03:29]} 12. dxe4 {[%emt 0:15:23]} Qxc4 {[%emt 0:
00:00]} 13. Nxe5 {[%emt 0:02:12]} Qxe4 {[%emt 0:02:12]} 14. Re1 {[%emt 0:01:28]
} Qd5 {[%emt 0:04:46]} 15. Be7 {[%emt 0:36:03]} Re8 {[%emt 0:02:14]} 16. c4 {
[%emt 0:04:35]} Qxd1 {[%emt 0:04:56]} 17. Raxd1 {[%emt 0:02:03]} Bxh3 {[%emt 0:
00:00]} 18. Nd3 {[%emt 0:05:32]} Be6 {[%emt 0:03:08]} 19. Bc5 {[%emt 0:01:07]}
b6 {[%emt 0:00:55]} 20. Bd4 {[%emt 0:00:59]} Bxc4 {[%emt 0:01:02]} 21. Ne5 {
[%emt 0:01:01]} Bd5 {[%emt 0:01:04]} 22. a3 {[%emt 0:00:16]} Rad8 {[%emt 0:00:
00]} 23. Bc3 {[%emt 0:01:00]} f6 {[%emt 0:00:39]} 24. Ng4 {[%emt 0:00:45]}
Rxe1+ {[%emt 0:01:04]} 25. Rxe1 {[%emt 0:00:19]} Kf7 {[%emt 0:00:33]} 26. Re3 {
[%emt 0:01:03]} Be6 {[%emt 0:01:27]} 27. Rg3 {[%emt 0:00:35]} Bxg4 {[%emt 0:00:
00]} 28. Rxg4 {[%emt 0:03:18]} Rd1+ {[%emt 0:00:46]} 29. Kh2 {[%emt 0:00:08]}
b5 {[%emt 0:00:36]} 30. Kg3 {[%emt 0:00:50]} c5 {[%emt 0:02:55]} 31. Kf3 {
[%emt 0:01:23]} c4 {[%emt 0:01:21]} 32. Re4 {[%emt 0:00:54]} Bb6 {[%emt 0:00:
00]} 33. Re2 {[%emt 0:01:07]} Rd3+ {[%emt 0:00:37]} 34. Ke4 {[%emt 0:00:38]} g6
{[%emt 0:03:02]} 35. g4 {[%emt 0:00:38]} c6 {[%emt 0:01:14]} 36. f4 {[%emt 0:
00:00]} h5 {[%emt 0:06:05]} 37. f5 {[%emt 0:02:30]} hxg4 {[%emt 0:00:25]} 38.
fxg6+ {[%emt 0:00:33]} Kxg6 {[%emt 0:00:17]} 39. Kf4 {[%emt 0:00:14]} Bc7+ {
[%emt 0:00:29]} 40. Kxg4 {[%emt 0:00:45]} f5+ {[%emt 0:00:14]} 0-1

[Event "44th Chess Olympiad Open 2022"]
[Site "Chennai"]
[Date "2022.08.08"]
[Round "10.48"]
[White "Berend, Fred"]
[Black "Gerena Rivas, Eliam"]
[Result "1-0"]
[WhiteElo "2307"]
[BlackElo "2102"]
[Annotator "RC"]
[PlyCount "213"]
[EventDate "2022.??.??"]
[TimeControl "60"]

1. d4 {[%emt 0:00:03]} Nf6 {[%emt 0:00:17]} 2. Bg5 {[%emt 0:00:10]} c5 {
[%emt 0:00:42]} 3. d5 {[%emt 0:00:49]} Qb6 {[%emt 0:00:29]} 4. Nc3 {[%emt 0:00:
00]} Qxb2 {[%emt 0:00:45]} 5. Bd2 {[%emt 0:00:06]} Qb6 {[%emt 0:00:32]} 6. e4 {
[%emt 0:00:05]} d6 {[%emt 0:00:46]} 7. f4 {[%emt 0:00:05]} e5 {[%emt 0:00:30]}
8. f5 {[%emt 0:04:11]} Qd8 {[%emt 0:04:02]} 9. Nh3 {[%emt 0:03:15]} Be7 {
[%emt 0:06:38]} 10. Nf2 {[%emt 0:07:05]} a6 {[%emt 0:14:58]} 11. a4 {[%emt 0:
00:00]} g6 {[%emt 0:12:03]} 12. g4 {[%emt 0:02:06]} Ng8 {[%emt 0:18:22]} 13.
Qc1 {[%emt 0:10:50]} h6 {[%emt 0:07:39]} 14. Ncd1 {[%emt 0:03:06]} b6 {[%emt 0:
00:00]} 15. Ra3 {[%emt 0:03:55]} Nd7 {[%emt 0:05:24]} 16. Be2 {[%emt 0:05:55]}
Nf8 {[%emt 0:03:09]} 17. Ne3 {[%emt 0:02:34]} Bd7 {[%emt 0:01:30]} 18. Qa1 {
[%emt 0:02:20]} Bc8 {[%emt 0:04:17]} 19. Nc4 {[%emt 0:03:41]} Qc7 {[%emt 0:00:
00]} 20. Qb2 {[%emt 0:05:23]} Rb8 {[%emt 0:01:02]} 21. Rb3 {[%emt 0:00:15]} Nd7
{[%emt 0:01:21]} 22. O-O {[%emt 0:01:28]} Ngf6 {[%emt 0:00:48]} 23. fxg6 {
[%emt 0:10:00]} fxg6 {[%emt 0:00:08]} 24. Rb1 {[%emt 0:00:38]} Bd8 {[%emt 0:00:
00]} 25. Qc1 {[%emt 0:04:17]} O-O {[%emt 0:02:05]} 26. Bxh6 {[%emt 0:01:39]}
Rf7 {[%emt 0:00:27]} 27. Bd2 {[%emt 0:02:01]} Nh7 {[%emt 0:00:37]} 28. g5 {
[%emt 0:02:42]} Be7 {[%emt 0:00:30]} 29. h4 {[%emt 0:00:28]} Qd8 {[%emt 0:00:
00]} 30. Bg4 {[%emt 0:05:26]} Kh8 {[%emt 0:00:32]} 31. Be6 {[%emt 0:04:48]} Rg7
{[%emt 0:00:20]} 32. Qf1 {[%emt 0:01:59]} Nhf8 {[%emt 0:00:23]} 33. Bg4 {
[%emt 0:00:25]} Rh7 {[%emt 0:00:25]} 34. Qh3 {[%emt 0:02:09]} Qe8 {[%emt 0:00:
00]} 35. Qg3 {[%emt 0:01:58]} b5 {[%emt 0:00:32]} 36. Na5 {[%emt 0:00:42]} c4 {
[%emt 0:00:32]} 37. Nxc4 {[%emt 0:01:02]} Nc5 {[%emt 0:00:15]} 38. Nxe5 {
[%emt 0:04:44]} Nxb3 {[%emt 0:00:25]} 39. Rxb3 {[%emt 0:01:22]} Bb7 {[%emt 0:
00:00]} 40. Bc3 {[%emt 0:03:46]} Kg8 {[%emt 0:00:28]} 41. Ned3 {[%emt 0:04:40]}
Bc8 {[%emt 0:06:12]} 42. axb5 {[%emt 0:00:48]} Rxb5 {[%emt 0:05:33]} 43. Nb4 {
[%emt 0:00:49]} Bd7 {[%emt 0:03:40]} 44. Nxa6 {[%emt 0:08:07]} Rxb3 {[%emt 0:
00:00]} 45. cxb3 {[%emt 0:00:04]} Qc8 {[%emt 0:01:52]} 46. Nb4 {[%emt 0:00:35]}
Qc5 {[%emt 0:00:48]} 47. Kg2 {[%emt 0:01:56]} Rf7 {[%emt 0:02:33]} 48. Bxd7 {
[%emt 0:04:25]} Nxd7 {[%emt 0:01:43]} 49. Ng4 {[%emt 0:04:49]} Bf8 {[%emt 0:00:
00]} 50. Nc6 {[%emt 0:01:59]} Bg7 {[%emt 0:01:14]} 51. Nh6+ {[%emt 0:04:17]}
Bxh6 {[%emt 0:01:00]} 52. gxh6 {[%emt 0:00:01]} Kh7 {[%emt 0:01:01]} 53. Nd8 {
[%emt 0:00:39]} Re7 {[%emt 0:01:53]} 54. Ne6 {[%emt 0:03:31]} Qb5 {[%emt 0:00:
00]} 55. Nf4 {[%emt 0:02:44]} Nf8 {[%emt 0:00:44]} 56. h5 {[%emt 0:00:13]} gxh5
{[%emt 0:00:39]} 57. Qg5 {[%emt 0:00:46]} Rf7 {[%emt 0:00:27]} 58. Bf6 {
[%emt 0:00:14]} Qd7 {[%emt 0:00:46]} 59. Nxh5 {[%emt 0:00:19]} Ng6 {[%emt 0:00:
00]} 60. Bg7 {[%emt 0:00:54]} Qe7 {[%emt 0:00:30]} 61. Qxe7 {[%emt 0:00:03]}
Nxe7 {[%emt 0:00:12]} 62. Nf6+ {[%emt 0:00:26]} Kg6 {[%emt 0:00:09]} 63. Nd7 {
[%emt 0:00:16]} Ng8 {[%emt 0:00:58]} 64. Nf8+ {[%emt 0:00:17]} Kh5 {[%emt 0:00:
00]} 65. Ne6 {[%emt 0:01:10]} Nxh6 {[%emt 0:00:25]} 66. Bf8 {[%emt 0:00:05]}
Rb7 {[%emt 0:00:49]} 67. Bxd6 {[%emt 0:01:11]} Rxb3 {[%emt 0:00:11]} 68. Bf4 {
[%emt 0:00:09]} Nf7 {[%emt 0:00:25]} 69. Kf2 {[%emt 0:00:44]} Kg4 {[%emt 0:00:
00]} 70. Ke2 {[%emt 0:00:41]} Rb2+ {[%emt 0:00:52]} 71. Kd3 {[%emt 0:00:04]}
Kf3 {[%emt 0:00:37]} 72. d6 {[%emt 0:01:00]} Rb7 {[%emt 0:00:34]} 73. e5 {
[%emt 0:00:13]} Rd7 {[%emt 0:00:31]} 74. Kd4 {[%emt 0:00:38]} Kg4 {[%emt 0:00:
00]} 75. Ke4 {[%emt 0:00:25]} Ra7 {[%emt 0:00:27]} 76. Be3 {[%emt 0:00:20]} Ra5
{[%emt 0:00:32]} 77. Nc5 {[%emt 0:00:35]} Ra8 {[%emt 0:00:30]} 78. d7 {[%emt 0:
00:00]} Nd8 {[%emt 0:00:30]} 79. Kd5 {[%emt 0:00:46]} Kf5 {[%emt 0:00:30]} 80.
e6 {[%emt 0:00:06]} Nxe6 {[%emt 0:00:30]} 81. Nxe6 {[%emt 0:00:03]} Kf6 {
[%emt 0:00:27]} 82. Bd4+ {[%emt 0:00:50]} Ke7 {[%emt 0:00:28]} 83. Nc5 {
[%emt 0:00:18]} Rg8 {[%emt 0:00:35]} 84. Kc6 {[%emt 0:00:09]} Rd8 {[%emt 0:00:
00]} 85. Kc7 {[%emt 0:00:20]} Rxd7+ {[%emt 0:00:15]} 86. Nxd7 {[%emt 0:00:01]}
Ke6 {[%emt 0:00:20]} 87. Kc6 {[%emt 0:00:01]} Kf5 {[%emt 0:00:29]} 88. Kd5 {
[%emt 0:00:05]} Kf4 {[%emt 0:00:21]} 89. Nc5 {[%emt 0:00:04]} Kf5 {[%emt 0:00:
00]} 90. Be5 {[%emt 0:00:59]} Kg5 {[%emt 0:00:23]} 91. Ke4 {[%emt 0:00:05]} Kg4
{[%emt 0:00:16]} 92. Bf4 {[%emt 0:00:20]} Kh4 {[%emt 0:00:23]} 93. Nd3 {
[%emt 0:00:16]} Kh5 {[%emt 0:00:48]} 94. Kf5 {[%emt 0:01:26]} Kh4 {[%emt 0:00:
00]} 95. Nf2 {[%emt 0:00:02]} Kh5 {[%emt 0:00:14]} 96. Bg3 {[%emt 0:00:02]} Kh6
{[%emt 0:00:19]} 97. Ne4 {[%emt 0:01:21]} Kg7 {[%emt 0:00:15]} 98. Bh4 {
[%emt 0:00:15]} Kf7 {[%emt 0:00:31]} 99. Nd6+ {[%emt 0:00:10]} Kg7 {[%emt 0:00:
00]} 100. Bg5 {[%emt 0:00:10]} Kh7 {[%emt 0:00:44]} 101. Kf6 {[%emt 0:00:05]}
Kg8 {[%emt 0:00:18]} 102. Kg6 {[%emt 0:00:15]} Kf8 {[%emt 0:00:13]} 103. Bh4 {
[%emt 0:00:03]} Kg8 {[%emt 0:00:12]} 104. Be7 {[%emt 0:00:01]} Kh8 {[%emt 0:00:
00]} 105. Nf5 {[%emt 0:00:06]} Kg8 {[%emt 0:00:09]} 106. Nh6+ {[%emt 0:00:04]}
Kh8 {[%emt 0:00:06]} 107. Bf6# {[%emt 0:00:03]} 1-0

[Event "44th Chess Olympiad Open 2022"]
[Site "Chennai"]
[Date "2022.08.08"]
[Round "10.48"]
[White "Steil-Antoni, Fiona"]
[Black "Zilleruelo Irizarry, Diego"]
[Result "1-0"]
[WhiteElo "2218"]
[BlackElo "2081"]
[Annotator "NA RC"]
[PlyCount "89"]
[EventDate "2022.??.??"]
[TimeControl "60"]

1. e4 {[%emt 0:00:03]} c6 {[%emt 0:00:02]} 2. d4 {[%emt 0:00:07]} d5 {[%emt 0:
00:00]} 3. e5 {[%emt 0:00:09]} c5 {[%emt 0:00:04]} 4. dxc5 {[%emt 0:00:17]} Nc6
{[%emt 0:00:03]} 5. a3 {[%emt 0:00:26]} a5 {[%emt 0:02:22]} 6. Nc3 {[%emt 0:00:
00]} e6 {[%emt 0:00:47]} 7. Na4 {[%emt 0:01:16]} Qh4 {[%emt 0:04:31]} 8. Bb5 {
[%emt 0:05:02]} Bd7 {[%emt 0:07:52]} 9. Nf3 {[%emt 0:15:06]} Qe4+ {[%emt 0:00:
00]} 10. Be3 {[%emt 0:06:39]} d4 {[%emt 0:22:21]} 11. Nxd4 {[%emt 0:13:33]}
Qxg2 {[%emt 0:00:11]} 12. Rf1 {[%emt 0:06:09]} Rd8 {[%emt 0:02:56]} 13. Qe2 {
[%emt 0:01:02]} Nxd4 {[%emt 0:21:16]} 14. Bxd4 {[%emt 0:00:11]} Ne7 {[%emt 0:
00:00]} 15. O-O-O {[%emt 0:02:15]} Bc6 {[%emt 0:01:31]} 16. Be3 {[%emt 0:04:16]
} Rxd1+ {[%emt 0:01:04]} 17. Rxd1 {[%emt 0:00:21]} Nf5 {[%emt 0:00:10]} 18. Nc3
{[%emt 0:12:11]} Be7 {[%emt 0:03:36]} 19. Bxc6+ {[%emt 0:01:43]} Qxc6 {[%emt 0:
00:00]} 20. b4 {[%emt 0:01:48]} axb4 {[%emt 0:00:04]} 21. axb4 {[%emt 0:00:09]}
O-O {[%emt 0:00:26]} 22. Kb2 {[%emt 0:03:28]} Ra8 {[%emt 0:05:42]} 23. Qb5 {
[%emt 0:02:40]} Nxe3 {[%emt 0:06:01]} 24. fxe3 {[%emt 0:00:26]} Rd8 {[%emt 0:
00:00]} 25. Qxc6 {[%emt 0:08:11]} bxc6 {[%emt 0:00:01]} 26. Kb3 {[%emt 0:01:17]
} Rxd1 {[%emt 0:01:10]} 27. Nxd1 {[%emt 0:00:02]} Bd8 {[%emt 0:00:07]} 28. Kc4
{[%emt 0:02:25]} Bc7 {[%emt 0:00:12]} 29. Kd4 {[%emt 0:00:17]} Kf8 {[%emt 0:00:
00]} 30. Nf2 {[%emt 0:02:19]} f6 {[%emt 0:03:15]} 31. exf6 {[%emt 0:00:56]}
gxf6 {[%emt 0:00:00]} 32. h3 {[%emt 0:00:54]} Ke7 {[%emt 0:00:53]} 33. c4 {
[%emt 0:01:29]} e5+ {[%emt 0:00:24]} 34. Kd3 {[%emt 0:00:48]} f5 {[%emt 0:00:
00]} 35. e4 {[%emt 0:01:18]} f4 {[%emt 0:00:07]} 36. Ke2 {[%emt 0:01:31]} h5 {
[%emt 0:00:17]} 37. Nd3 {[%emt 0:00:57]} Kf6 {[%emt 0:00:57]} 38. b5 {[%emt 0:
00:00]} Kg5 {[%emt 0:02:55]} 39. b6 {[%emt 0:00:28]} Bb8 {[%emt 0:00:23]} 40.
Nb4 {[%emt 0:00:25]} Kh4 {[%emt 0:00:24]} 41. Kf3 {[%emt 0:30:31]} Kxh3 {
[%emt 0:30:15]} 42. Nxc6 {[%emt 0:00:18]} Kh2 {[%emt 0:00:03]} 43. Nxb8 {
[%emt 0:00:28]} Kg1 {[%emt 0:00:05]} 44. Nc6 {[%emt 0:00:31]} h4 {[%emt 0:00:
00]} 45. Nxe5 {[%emt 0:00:17]} 1-0